bitfinex/quotes_ETHUSD_20240719
["timestamp","ask_amount","ask_price","bid_price","bid_amount"]
[1721376954412,2.94846,3391.6,3390.9,1.422597]
[1721376954612,2.94823,3391.9,3390.9,4.371657]
[1721376954613,2.94835,3391.8,3390.9,4.371657]
[1721376954825,2.94839,3391.7,3390.9,4.371657]
[1721376955154,2.94847,3391.6,3390.9,1.422597]
[1721376955665,2.94855,3391.5,3390.9,1.422597]
[1721376955815,2.94877,3391.3,3390.9,0.55]
[1721376956010,2.94855,3391.5,3390.7,0.55]
[1721376956227,2.94866,3391.4,3390.7,0.55]
[1721376956428,2.94852,3391.6,3390.8,2.94909]
[1721376956628,2.94852,3391.6,3390.9,0.55]
[1721376956832,2.94852,3391.6,3391.0,0.349909]
[1721376957116,2.94852,3391.6,3391.1,0.55]
[1721376958218,2.94855,3391.5,3391.1,0.55]
[1721376958547,2.94855,3391.5,3390.8,0.55]
[1721376958709,2.94838,3391.7,3390.6,2.2776]
[1721376958710,2.94863,3391.4,3390.7,3.49923]
[1721376958914,2.94881,3391.2,3390.8,0.877683]
[1721376959110,2.94881,3391.2,3390.9,0.55]
[1721376959962,2.94863,3391.4,3390.9,0.55]
[1721376960258,2.94855,3391.5,3390.9,0.55]
[1721376960565,2.94848,3391.6,3390.9,1.2154503]
[1721376960769,2.94855,3391.5,3390.9,1.2154503]
[1721376961827,3.0,3392.3,3390.9,1.2154503]
[1721376962036,2.94889,3391.2,3390.9,0.55]
[1721376962232,2.94908,3390.9,3390.1,2.4669]
[1721376962466,2.94908,3390.9,3389.0,0.61334452]
[1721376962467,2.94894,3391.1,3389.5,5.41716]
[1721376962636,2.94968,3390.2,3389.5,5.41716]
[1721376962838,2.94968,3390.2,3389.6,1.576761]
[1721376963058,2.94968,3390.2,3389.5,2.4669]
[1721376963460,2.94968,3390.2,3389.5,5.41718]
[1721376963868,2.9496,3390.3,3389.6,3.0]
[1721376964086,2.94968,3390.2,3389.6,3.0]
[1721376964280,2.95001,3389.9,3389.5,2.4669]
[1721376964482,2.95011,3389.7,3388.9,5.34298]
[1721376964649,2.94999,3389.9,3389.1,2.95063]
[1721376964836,2.94994,3389.9,3389.1,2.95063]
[1721376965175,2.94994,3389.9,3389.2,2.95053]
[1721376965355,2.94968,3390.2,3389.2,2.95053]
[1721376965550,2.94977,3390.1,3389.3,2.95045]
[1721376965748,2.94977,3390.1,3389.4,0.90690659]
[1721376965944,2.94977,3390.1,3389.4,3.85727659]
[1721376966149,2.94902,3391.0,3390.1,2.94969]
[1721376966336,2.94881,3391.2,3390.2,3.5586553]
[1721376966538,2.94891,3391.1,3390.3,2.94958]
[1721376966736,2.94891,3391.1,3390.4,0.90585653]
[1721376966940,2.94903,3391.0,3390.4,0.90585653]
[1721376967470,2.94866,3391.4,3390.6,2.94932]
[1721376967680,2.94876,3391.3,3390.7,0.55]
[1721376968177,3.0,3392.1,3390.6,0.55]
[1721376968178,2.94905,3391.0,3390.6,0.55]
[1721376968393,2.9488,3391.3,3390.6,0.55]
[1721376968678,2.94909,3390.9,3390.6,0.55]
[1721376968837,2.94855,3391.5,3390.6,0.55]
[1721376969238,2.94914,3390.9,3390.6,0.55]
[1721376969438,2.94914,3390.9,3390.3,0.55]
[1721376969686,2.94914,3390.9,3390.4,0.879927]
[1721376969876,2.94914,3390.9,3390.5,0.55]
[1721376970248,3.0,3392.1,3390.5,0.55]
[1721376970458,2.94848,3391.6,3390.6,2.94931]
[1721376970679,2.94848,3391.6,3390.7,0.55]
[1721376970981,2.94848,3391.6,3390.8,0.349931]
[1721376971286,2.94872,3391.3,3390.9,0.55]
[1721376971982,2.94882,3391.2,3390.9,0.55]
[1721376972195,2.94878,3391.3,3390.9,0.55]
[1721376972649,2.94833,3391.8,3390.9,0.55]
[1721376972845,5.4044,3392.2,3390.4,0.879927]
[1721376972846,2.94895,3391.1,3390.4,0.879927]
[1721376973048,2.94925,3390.7,3390.1,12.6996]
[1721376973282,2.94942,3390.5,3390.1,2.2996]
[1721376973502,2.94925,3390.7,3390.1,2.2996]
[1721376973868,5.94831,3391.8,3390.1,2.2996]
[1721376973869,2.94898,3391.0,3390.3,2.94959]
[1721376974066,2.94898,3391.0,3390.4,0.524919]
[1721376974273,2.94874,3391.3,3390.4,0.524919]
[1721376974460,2.94874,3391.3,3390.5,0.55]
[1721376974667,2.94856,3391.5,3390.5,3.49935]
[1721376974668,2.94881,3391.2,3390.5,3.49935]
[1721376974992,3.0,3391.8,3390.5,3.49935]
[1721376974993,2.94919,3390.8,3390.5,0.55]
[1721376975361,2.94919,3390.8,3390.5,0.9574919]
[1721376976492,2.94899,3391.0,3390.5,0.9574919]
[1721376977490,2.94908,3390.9,3390.5,0.9574919]
[1721376977694,2.94839,3391.7,3390.5,0.55]
[1721376977911,2.94931,3390.7,3390.5,0.55]
[1721376978781,2.94898,3391.1,3390.5,0.55]
[1721376979122,2.94898,3391.0,3390.2,3.49959]
[1721376980173,2.94907,3390.9,3390.2,3.49959]
[1721376980381,2.94907,3390.9,3390.3,0.944935]
[1721376980597,2.94907,3390.9,3390.4,0.55]
[1721376980800,2.94921,3390.8,3390.4,0.55]
[1721376981016,2.94927,3390.7,3390.4,0.55]
[1721376981313,2.94912,3390.9,3390.1,3.49976]
[1721376981611,2.94901,3391.0,3390.3,2.94955]
[1721376981779,2.94901,3391.0,3390.4,0.55]
[1721376983727,2.94861,3391.5,3390.7,2.9492]
[1721376984014,2.94861,3391.5,3390.8,0.55]
[1721376984015,2.94866,3391.4,3390.8,0.55]
[1721376984575,2.94865,3391.4,3390.6,0.55]
[1721376984820,2.94865,3391.4,3390.6,0.28277]
[1721376985110,2.94865,3391.4,3390.7,0.55]
[1721376985278,2.94849,3391.6,3390.7,0.55]
[1721376985279,2.94872,3391.3,3390.7,0.55]
[1721376985682,2.9486,3391.5,3390.7,3.4992]
[1721376985914,2.94872,3391.3,3390.7,3.4992]
[1721376986135,2.94872,3391.3,3390.8,0.673132]
[1721376986440,2.94872,3391.3,3390.9,0.55]
[1721376987135,2.94831,3391.8,3390.9,0.55]
[1721376987442,2.94839,3391.7,3390.9,0.55]
[1721376987734,2.94856,3391.5,3390.9,0.55]
[1721376987937,2.94839,3391.7,3391.0,0.349914]
[1721376988150,2.94839,3391.7,3391.1,0.55]
[1721376988442,2.94846,3391.6,3391.1,0.55]
[1721376989761,2.94798,3392.2,3391.1,0.55]
[1721376990035,3.0,3392.6,3390.6,0.61334452]
[1721376990036,2.94924,3390.7,3390.6,0.61334452]
[1721376990236,2.94924,3390.7,3390.1,0.61334452]
[1721376990436,2.94924,3390.7,3390.2,2.00816597]
[1721376990600,2.94924,3390.7,3390.2,0.98237413]
[1721376991339,2.94931,3390.7,3390.2,0.98237413]
[1721376991806,2.94882,3391.2,3389.7,0.61334452]
[1721376992004,2.94947,3390.5,3389.5,0.61334452]
[1721376992252,2.95047,3389.3,3389.1,0.61334452]
[1721376992548,2.95047,3389.3,3388.7,2.3405]
[1721376992549,2.95065,3389.1,3388.7,2.3405]
[1721376992841,2.95055,3389.2,3388.7,2.3405]
[1721376993033,2.95064,3389.1,3388.8,0.23405]
[1721376993252,2.95051,3389.3,3388.8,0.23405]
[1721376993644,2.95005,3389.8,3389.0,2.95071]
[1721376994160,2.94994,3389.9,3388.8,3.18493]
[1721376994312,2.94994,3389.9,3388.9,3.798449]
[1721376994313,2.95007,3389.8,3388.9,3.798449]
[1721376994711,2.94988,3390.0,3388.9,0.847649]
[1721376994911,2.94858,3391.5,3389.4,2.95036]
[1721376994912,2.94977,3390.1,3389.4,2.95036]
[1721376995120,2.9492,3390.8,3389.5,3.50028]
[1721376995121,2.94963,3390.3,3389.5,3.50028]
[1721376995317,2.94937,3390.6,3389.6,2.39949817]
[1721376995516,2.94931,3390.7,3389.7,3.5001]
[1721376995948,2.9495,3390.5,3389.7,3.5001]
[1721376996156,2.94951,3390.4,3389.8,0.879088]
[1721376996322,2.94959,3390.3,3389.9,0.55]
[1721376996534,2.94985,3390.0,3389.6,2.3405]
[1721376996851,2.94985,3390.0,3389.7,0.55]
[1721376997147,2.94976,3390.1,3389.7,0.55]
[1721376997356,2.94976,3390.1,3389.4,0.55]
[1721376997529,2.94976,3390.1,3389.5,0.650045]
[1721376997719,2.94976,3390.1,3389.6,0.55]
[1721376998121,3.0,3391.0,3389.6,0.55]
[1721376998343,2.9501,3389.8,3389.2,3.0]
[1721376998539,2.9501,3389.8,3389.3,0.55]
[1721376998748,2.9501,3389.8,3389.4,0.878213]
[1721376999023,2.9501,3389.8,3389.5,0.55]
[1721376999553,2.95012,3389.7,3389.5,0.55]
[1721376999714,2.94986,3390.0,3389.5,0.55]
[1721376999715,2.95,3389.9,3389.5,0.55]
[1721377000529,2.95009,3389.8,3389.5,0.55]
[1721377000765,2.95037,3389.5,3388.6,2.3512]
[1721377001059,2.95047,3389.3,3388.6,5.30226]
[1721377001822,2.95047,3389.3,3388.6,2.3512]
[1721377002047,2.95072,3389.0,3388.6,2.3512]
[1721377002556,2.95054,3389.2,3388.6,2.3512]
[1721377002966,2.95073,3389.0,3388.6,2.3512]
[1721377003171,2.95054,3389.2,3388.6,2.3512]
[1721377003460,2.95054,3389.2,3388.7,0.830244]
[1721377003621,2.95054,3389.2,3388.8,0.55]
[1721377004017,2.95065,3389.1,3388.8,0.55]
[1721377004593,2.95073,3389.0,3388.8,0.55]
[1721377004855,2.9508,3388.9,3388.8,0.55]
[1721377005057,2.9508,3388.9,3388.0,9.8412]
[1721377005058,2.9508,3388.9,3388.2,5.95141]
[1721377005262,2.9508,3388.9,3388.3,2.129261]
[1721377011939,2.9509,3388.8,3388.3,2.129261]
[1721377013967,2.95109,3388.6,3388.3,2.129261]
[1721377014147,2.95109,3388.6,3388.3,0.55]
[1721377014350,2.9509,3388.8,3388.2,0.55]
[1721377014737,2.95099,3388.7,3388.2,0.55]
[1721377014935,2.9509,3388.8,3388.2,0.55]
[1721377015140,2.9509,3388.8,3388.3,0.894278]
[1721377015358,5.90153,3389.0,3388.4,0.55]
[1721377015577,5.27203,3389.8,3388.4,3.50124]
[1721377015874,2.95072,3389.0,3388.4,3.50124]
[1721377016036,2.95072,3389.0,3388.5,0.7346928]
[1721377016239,2.95072,3389.0,3388.6,0.55]
[1721377016479,10.39959,3390.3,3388.6,0.55]
[1721377016480,2.95029,3389.5,3388.6,0.55]
[1721377016676,2.95037,3389.4,3388.6,0.55]
[1721377016848,2.95037,3389.4,3388.6,3.50101]
[1721377017057,2.95046,3389.3,3388.7,0.71868228]
[1721377017370,2.95035,3389.5,3388.8,0.55]
[1721377017690,2.95022,3389.6,3388.8,0.55]
[1721377017691,2.95038,3389.4,3388.8,0.55]
[1721377017867,2.95046,3389.3,3388.8,0.55]
[1721377018176,2.95064,3389.1,3388.6,0.55]
[1721377018474,2.95064,3389.1,3388.4,3.50123]
[1721377018641,2.95064,3389.1,3388.5,0.7346808]
[1721377018842,2.94997,3389.9,3388.6,0.55]
[1721377019039,2.95086,3388.9,3388.6,0.55]
[1721377019237,2.95086,3388.9,3388.3,0.55]
[1721377019461,2.95067,3389.1,3388.3,3.50132]
[1721377019669,2.95072,3389.0,3388.4,0.945272]
[1721377019982,2.95072,3389.0,3388.5,0.55]
[1721377020851,2.95081,3388.9,3388.5,0.55]
[1721377021070,2.95023,3389.6,3388.5,0.55]
[1721377021071,2.95068,3389.1,3388.5,0.55]
[1721377021244,2.95075,3389.0,3388.5,0.55]
[1721377021441,2.95081,3388.9,3388.6,0.4446592]
[1721377021645,2.95081,3388.9,3388.7,0.55]
[1721377022077,2.95081,3388.9,3388.4,0.945272]
[1721377022078,2.95089,3388.8,3388.5,0.55]
[1721377022984,5.90155,3389.0,3388.5,0.55]
[1721377023296,2.95107,3388.6,3388.5,0.55]
[1721377023496,2.95126,3388.4,3387.7,2.95184]
[1721377023737,2.95177,3387.8,3387.5,7.4]
[1721377024039,2.564,3388.6,3386.9,2.3685]
[1721377024040,2.95195,3387.6,3386.9,2.3685]
[1721377024234,2.95174,3387.9,3387.0,1.272107]
[1721377024526,2.95176,3387.8,3387.1,2.95237]
[1721377024753,2.95144,3388.2,3387.2,2.95227]
[1721377024968,2.95113,3388.6,3387.6,2.3696]
[1721377025261,2.95113,3388.6,3387.7,2.95179]
[1721377025262,2.95125,3388.4,3387.7,2.95179]
[1721377025466,2.95125,3388.4,3387.8,0.788539]
[1721377026138,2.95107,3388.6,3387.9,0.55]
[1721377026342,2.95092,3388.8,3388.0,2.95158]
[1721377026654,2.95075,3389.0,3388.3,2.95131]
[1721377026864,2.95075,3389.0,3388.4,0.55]
[1721377027061,2.95075,3389.0,3388.5,0.350131]
[1721377027235,2.95075,3389.0,3388.6,0.55]
[1721377027441,2.95081,3388.9,3388.6,0.55]
[1721377028240,2.95121,3388.5,3387.8,3.740299]
[1721377028441,2.95108,3388.6,3387.9,3.55]
[1721377028660,2.95108,3388.6,3388.0,0.7290389]
[1721377028961,2.95108,3388.6,3388.1,0.55]
[1721377029149,2.95124,3388.4,3388.1,0.55]
[1721377029352,2.95124,3388.4,3387.9,0.55]
[1721377029671,2.95173,3387.9,3387.1,5.42161]
[1721377029903,2.95202,3387.6,3386.7,2.95269]
[1721377030046,2.95202,3387.6,3386.8,0.837487]
[1721377030553,2.9523,3387.2,3386.8,0.837487]
[1721377030886,2.95212,3387.4,3386.8,0.837487]
[1721377031185,3.0,3388.0,3387.0,2.95246]
[1721377031186,2.95183,3387.8,3387.0,2.95246]
[1721377031488,2.95183,3387.8,3387.1,0.3789947]
[1721377031857,2.95147,3388.2,3387.2,0.55]
[1721377032059,2.95125,3388.4,3387.4,2.3477]
[1721377032262,2.95125,3388.4,3387.5,3.50197]
[1721377032467,2.95109,3388.6,3387.6,5.95194]
[1721377032781,2.95054,3389.2,3388.0,2.95157]
[1721377032782,2.95073,3389.0,3388.0,2.95157]
[1721377032990,2.95015,3389.7,3387.7,1.49399461]
[1721377032991,2.95063,3389.1,3388.4,2.95123]
[1721377033145,2.95063,3389.1,3388.2,5.29909]
[1721377033146,2.95048,3389.3,3388.5,0.55]
[1721377033347,2.95076,3389.0,3388.5,0.55]
[1721377033550,2.95089,3388.9,3388.3,0.55]
[1721377033785,2.95089,3388.9,3388.3,1.434927]
[1721377034243,2.95098,3388.7,3388.3,1.434927]
[1721377034852,2.95108,3388.6,3388.3,1.434927]
[1721377035049,2.95108,3388.6,3388.3,0.55]
[1721377035274,2.95108,3388.6,3387.9,5.95167]
[1721377035476,2.9509,3388.8,3388.0,3.50158]
[1721377035693,2.95057,3389.2,3388.4,2.95124]
[1721377035991,2.95064,3389.1,3388.5,0.55]
[1721377036171,2.95064,3389.1,3388.6,0.350124]
[1721377036372,2.95072,3389.0,3388.7,0.55]
[1721377037056,2.95072,3389.0,3388.4,0.55]
[1721377037390,2.95041,3389.4,3388.5,3.01017073]
[1721377037586,2.95041,3389.4,3388.7,2.2816]
[1721377037794,2.95041,3389.4,3388.8,0.55]
[1721377038453,2.95056,3389.2,3388.8,0.55]
[1721377038668,2.9508,3388.9,3388.8,0.55]
[1721377038855,2.9508,3388.9,3388.1,5.24009]
[1721377039076,2.9508,3388.9,3388.2,0.55]
[1721377039275,2.95101,3388.7,3388.2,1.174176]
[1721377040293,2.9509,3388.8,3388.2,1.174176]
[1721377040654,2.95098,3388.7,3388.3,0.55]
[1721377041291,2.95098,3388.7,3387.8,7.4]
[1721377041292,2.95158,3388.1,3387.5,2.3313]
[1721377041856,2.9513,3388.4,3387.0,2.3313]
[1721377042051,2.95208,3387.5,3387.0,2.3313]
[1721377042469,3.0,3388.5,3387.0,2.3313]
[1721377042670,2.95255,3386.9,3386.4,2.3396]
[1721377042896,2.95238,3387.1,3386.4,2.3396]
[1721377043099,2.95238,3387.1,3386.5,0.854187]
[1721377043972,2.95221,3387.3,3386.5,0.854187]
[1721377044155,10.40149,3388.2,3386.6,0.05905366]
[1721377044156,2.95205,3387.5,3386.6,0.05905366]
[1721377044357,2.95205,3387.5,3386.8,2.95263]
[1721377045157,7.45,3388.2,3386.4,2.3396]
[1721377045158,2.95169,3387.9,3387.0,2.95246]
[1721377045499,2.95181,3387.8,3387.1,0.55]
[1721377045659,2.95205,3387.5,3387.1,0.55]
[1721377045858,2.95195,3387.6,3387.1,0.55]
[1721377046200,2.95211,3387.5,3387.1,0.55]
[1721377046703,2.95226,3387.3,3387.1,0.55]
[1721377046867,2.95239,3387.1,3386.4,5.29251]
[1721377047068,2.95229,3387.2,3386.5,2.95289]
[1721377048190,2.95229,3387.2,3386.6,0.55]
[1721377048496,2.95221,3387.3,3386.6,3.50281]
[1721377048702,2.95229,3387.2,3386.6,0.55]
[1721377048999,2.95229,3387.2,3386.5,0.55]
[1721377049207,2.95172,3387.9,3386.6,4.0217774]
[1721377049402,2.95226,3387.3,3386.7,0.55]
[1721377050697,2.95204,3387.5,3386.8,2.95261]
[1721377050885,2.95204,3387.5,3386.9,0.55]
[1721377051401,2.95206,3387.5,3386.9,0.55]
[1721377051586,2.95213,3387.4,3386.8,0.55]
[1721377051786,2.9522,3387.3,3386.8,0.55]
[1721377052108,2.9522,3387.3,3386.7,0.55]
[1721377052307,2.95206,3387.5,3386.7,4.48910374]
[1721377052514,2.95193,3387.7,3386.7,0.55]
[1721377052672,2.3965,3388.4,3386.5,3.50289]
[1721377052673,2.95236,3387.2,3386.5,3.50289]
[1721377053087,2.9524,3387.1,3386.5,0.55]
[1721377053808,2.9524,3387.1,3386.5,3.50289]
[1721377054674,2.95226,3387.3,3386.6,2.9528]
[1721377054929,2.95226,3387.3,3386.7,0.87476079]
[1721377055230,2.95214,3387.4,3386.7,0.87476079]
[1721377055823,2.95223,3387.3,3386.7,0.87476079]
[1721377056020,2.95223,3387.3,3386.7,0.55]
[1721377057934,2.95238,3387.1,3386.7,0.55]
[1721377058233,2.95238,3387.1,3386.5,0.55]
[1721377058620,2.95238,3387.1,3386.5,3.50289]
[1721377059007,2.9523,3387.2,3386.5,3.50289]
[1721377059331,3.0,3388.1,3386.7,2.95265]
[1721377059332,2.95188,3387.7,3386.7,2.95265]
[1721377059633,2.95212,3387.4,3386.8,0.55]
[1721377060333,2.95221,3387.3,3386.8,0.55]
[1721377060504,2.95197,3387.6,3386.8,0.55]
[1721377060719,2.95217,3387.4,3386.8,0.55]
[1721377061095,2.95221,3387.3,3386.8,0.55]
[1721377061316,2.95221,3387.3,3386.7,0.55]
[1721377061807,2.95221,3387.3,3386.6,3.5028]
[1721377062215,2.95221,3387.3,3386.6,4.382339]
[1721377062691,2.95221,3387.3,3386.6,0.55]
[1721377062897,2.95221,3387.3,3386.5,0.55]
[1721377063093,2.95241,3387.1,3386.5,0.55]
[1721377063332,2.4891,3387.5,3386.5,0.55]
[1721377063532,2.95263,3386.9,3386.3,0.55]
[1721377063828,2.95247,3387.0,3386.3,3.50307]
[1721377064134,2.95222,3387.3,3386.5,2.95289]
[1721377064294,2.95236,3387.2,3386.6,0.55]
[1721377066808,2.95212,3387.4,3386.7,5.22302]
[1721377067050,2.95212,3387.4,3386.8,0.55]
[1721377067255,2.9522,3387.3,3386.8,0.55]
[1721377067813,2.95197,3387.6,3386.8,0.55]
[1721377068563,2.95217,3387.4,3386.8,0.55]
[1721377068741,2.95197,3387.6,3386.9,3.529791]
[1721377068950,2.95149,3388.2,3387.0,0.60904486]
[1721377069117,2.95097,3388.8,3387.6,5.21914]
[1721377069462,2.95144,3388.2,3387.7,0.55]
[1721377069625,2.95107,3388.6,3387.7,1.126925]
[1721377069824,2.95101,3388.7,3387.8,2.95176]
[1721377070045,2.95075,3389.0,3387.7,0.55]
[1721377070046,2.95075,3389.0,3388.0,2.95152]
[1721377070209,2.95099,3388.7,3388.0,2.95152]
[1721377070572,2.95071,3389.1,3388.1,0.55]
[1721377070724,2.95121,3388.5,3387.8,0.55]
[1721377070913,2.95138,3388.3,3387.8,1.422099]
[1721377071835,2.95119,3388.5,3387.8,1.422099]
[1721377072234,2.9511,3388.6,3387.8,1.422099]
[1721377072440,2.95121,3388.5,3387.8,1.422099]
[1721377073540,2.95094,3388.8,3387.8,1.422099]
[1721377073740,2.95076,3389.0,3388.2,2.95139]
[1721377073913,2.95076,3389.0,3388.3,0.55]
[1721377074115,2.95081,3388.9,3388.3,0.55]
[1721377074409,5.95057,3389.2,3388.3,3.5013]
[1721377074410,2.95067,3389.1,3388.3,3.5013]
[1721377074616,2.9503,3389.5,3388.4,2.40892074]
[1721377074855,2.9503,3389.5,3388.5,3.79697207]
[1721377074856,2.95041,3389.4,3388.5,3.79697207]
[1721377075008,2.95041,3389.4,3388.6,2.95101]
[1721377075218,2.95063,3389.2,3388.7,0.55]
[1721377075442,2.95095,3388.8,3388.5,0.55]
[1721377075648,2.95072,3389.0,3388.5,0.55]
[1721377076215,2.95089,3388.8,3388.5,0.55]
[1721377076626,2.95098,3388.7,3388.5,0.55]
[1721377076922,2.95126,3388.4,3387.9,2.316]
[1721377077649,2.95116,3388.5,3387.9,2.316]
[1721377077831,2.95116,3388.5,3387.9,3.137968]
[1721377078031,2.95116,3388.5,3388.0,0.55]
[1721377079366,2.95127,3388.4,3388.0,0.55]
[1721377079523,2.95159,3388.0,3387.9,2.316]
[1721377079728,2.95038,3389.4,3387.2,2.2933]
[1721377079729,2.95171,3387.9,3387.2,2.2933]
[1721377079960,2.95171,3387.9,3387.2,3.3862651]
[1721377080160,2.95171,3387.9,3387.3,3.0]
[1721377080500,2.95151,3388.1,3387.3,2.95219]
[1721377080701,2.95106,3388.7,3388.0,2.95158]
[1721377080901,2.95106,3388.7,3388.1,2.2547]
[1721377081196,2.95124,3388.4,3388.2,0.55]
[1721377081352,2.95158,3388.1,3387.4,2.2547]
[1721377081548,2.95174,3387.9,3387.4,2.2547]
[1721377081752,2.95158,3388.1,3387.4,2.2547]
[1721377082055,2.95158,3388.1,3387.4,2.58946651]
[1721377082249,1.50649925,3389.3,3387.8,2.95172]
[1721377082498,2.95095,3388.8,3388.0,2.95152]
[1721377082793,2.95074,3389.0,3388.0,2.95152]
[1721377082956,5.95081,3388.9,3388.1,0.55]
[1721377083155,2.95019,3389.7,3388.0,2.3284]
[1721377083460,2.95072,3389.0,3388.2,2.95141]
[1721377083681,2.95072,3389.0,3388.3,3.50133]
[1721377083864,2.9506,3389.2,3388.4,2.95117]
[1721377084195,2.9506,3389.2,3388.5,0.55]
[1721377084357,2.9506,3389.2,3388.5,3.50115]
[1721377084553,2.9506,3389.2,3388.6,0.645248]
[1721377084784,2.95037,3389.4,3388.7,3.50095]
[1721377084959,2.95029,3389.5,3388.8,2.95087]
[1721377085159,2.95029,3389.5,3388.9,2.8605]
[1721377085584,2.95038,3389.4,3388.9,2.8605]
[1721377086304,2.94991,3390.0,3389.3,2.95044]
[1721377086499,2.94991,3390.0,3389.4,0.55]
[1721377086667,2.95,3389.9,3389.4,0.55]
[1721377087002,2.95018,3389.7,3389.2,0.55]
[1721377087161,2.9502,3389.6,3389.1,0.55]
[1721377087362,2.95004,3389.8,3389.1,0.55]
[1721377087804,2.94993,3389.9,3389.2,2.95053]
[1721377088007,2.94993,3389.9,3389.3,0.55]
[1721377088605,2.95002,3389.8,3389.2,0.55]
[1721377088807,2.94978,3390.1,3389.2,0.55]
[1721377089113,2.94994,3389.9,3389.2,3.50053]
[1721377089315,7.45,3391.0,3389.5,2.95023]
[1721377089603,2.94942,3390.5,3389.8,5.32932]
[1721377089801,2.94942,3390.5,3389.9,0.55]
[1721377090386,2.9493,3390.7,3389.9,0.55]
[1721377090587,2.94877,3391.3,3390.5,2.94941]
[1721377090825,2.94877,3391.3,3390.6,0.55]
[1721377090976,2.94857,3391.5,3390.7,2.94923]
[1721377091298,3.4109299,3391.7,3390.7,2.94923]
[1721377091299,2.94838,3391.7,3390.9,2.94901]
[1721377091511,2.94796,3392.2,3391.0,0.55]
[1721377091683,2.94851,3391.6,3391.0,0.55]
[1721377092012,2.94851,3391.6,3390.9,0.55]
[1721377092316,0.30855294,3392.7,3390.9,4.087204]
[1721377092488,2.94836,3391.8,3391.0,2.94896]
[1721377092703,2.94836,3391.8,3391.1,0.55]
[1721377093302,2.94838,3391.7,3391.1,0.55]
[1721377093491,2.94855,3391.5,3391.0,0.55]
[1721377094013,0.30855294,3392.7,3390.2,9.6688]
[1721377094014,2.3676,3392.0,3390.2,9.6688]
[1721377094204,2.3676,3392.0,3390.2,2.2688]
[1721377094205,2.94944,3390.5,3390.2,2.2688]
[1721377094410,2.94942,3390.5,3390.2,2.2688]
[1721377094602,2.94942,3390.5,3389.5,2.95024]
[1721377094603,2.94856,3391.5,3389.5,2.2688]
[1721377094835,1.7,3392.1,3389.5,2.2688]
[1721377094836,2.94974,3390.2,3389.5,2.2688]
[1721377095032,2.94974,3390.2,3389.5,2.79072]
[1721377095232,2.94979,3390.1,3389.5,2.79072]
[1721377095699,2.94933,3390.6,3389.5,5.741]
[1721377095904,2.94907,3390.9,3390.1,2.94975]
[1721377096097,2.492,3391.6,3389.9,2.94988]
[1721377096335,2.94923,3390.8,3389.9,3.839886]
[1721377096635,2.94943,3390.5,3389.9,0.890006]
[1721377096799,2.94933,3390.6,3389.9,0.890006]
[1721377096999,2.94933,3390.6,3390.0,0.55]
[1721377097514,2.94887,3391.2,3390.0,0.55]
[1721377097735,5.492,3391.6,3390.0,0.55]
[1721377097736,2.94957,3390.4,3390.0,0.55]
[1721377097935,2.94924,3390.7,3389.6,3.0]
[1721377098134,2.94975,3390.2,3389.6,3.0]
[1721377098347,2.94977,3390.1,3389.6,3.0]
[1721377098639,2.94977,3390.1,3389.7,0.874108]
[1721377099145,2.94937,3390.6,3389.7,3.824188]
[1721377099536,3.417,3391.3,3389.7,0.874108]
[1721377099734,3.417,3391.3,3389.6,3.0]
[1721377099735,2.94992,3390.0,3389.8,0.55]
[1721377100045,2.94992,3390.0,3389.7,0.55]
[1721377100426,2.94992,3390.0,3389.6,0.55]
[1721377100634,2.95009,3389.8,3389.5,2.2688]
[1721377100829,2.94988,3390.0,3389.5,2.2688]
[1721377101037,2.94976,3390.1,3389.5,2.790734]
[1721377102137,2.9477,3392.5,3389.6,0.55]
[1721377102348,2.94887,3391.2,3390.4,2.94947]
[1721377102519,2.94887,3391.2,3390.5,2.8515]
[1721377102859,2.94887,3391.2,3390.6,0.580097]
[1721377103161,2.94887,3391.2,3390.7,0.55]
[1721377103331,2.9489,3391.1,3390.7,0.55]
[1721377103533,2.94872,3391.3,3390.7,0.55]
[1721377104118,3.417,3392.1,3390.8,2.3147]
[1721377104326,2.94841,3391.7,3391.0,2.94898]
[1721377104620,2.94841,3391.7,3391.1,0.55]
[1721377105326,2.94829,3391.8,3391.1,2.94887]
[1721377105523,3.417,3392.5,3391.2,0.55]
[1721377105723,2.94751,3392.7,3391.2,0.55]
[1721377105724,5.89744,3391.3,3391.2,0.55]
[1721377105949,3.417,3391.7,3390.3,2.4928]
[1721377106155,2.94888,3391.2,3390.4,0.05898675]
[1721377106330,2.94896,3391.1,3390.3,6.43167]
[1721377106681,3.417,3391.7,3390.3,3.48208]
[1721377106682,2.94924,3390.7,3390.3,3.48208]
[1721377107118,2.94933,3390.6,3390.3,3.48208]
[1721377107321,2.9494,3390.6,3390.3,2.4928]
[1721377107617,2.94925,3390.7,3390.3,2.4928]
[1721377107820,2.94947,3390.5,3390.3,2.4928]
[1721377108255,2.94909,3390.9,3390.3,2.4928]
[1721377108977,2.94901,3391.0,3390.3,5.44238]
[1721377109124,2.94901,3391.0,3390.4,1.389214]